fUSD/lending_fUSD_20251129
["ID","MTS","AMOUNT","RATE_DAILY","PERIOD"]
[395121010,1764456662733,-228.28213921,0.00035616,2]
[395121011,1764456662742,-454.01761,0.00035616,2]
[395121012,1764456662752,-1842.83656728,0.00035616,14]
[395121013,1764456662762,-1091.02,0.00035616,2]
[395121014,1764456662772,-1091.02,0.00035616,2]
[395121015,1764456662781,-1091.02,0.00035616,2]
[395121016,1764456662791,-1091.02,0.00035616,2]
[395121017,1764456662800,-1091.02,0.00035616,2]
[395121018,1764456662810,-1091.02,0.00035616,2]
[395121019,1764456662821,-1091.02,0.00035616,2]
[395121020,1764456662831,-1091.02,0.00035616,2]
[395121021,1764456662840,-1091.02,0.00035616,2]
[395121022,1764456662850,-1091.02,0.00035616,2]
[395121023,1764456662859,-1091.02,0.00035616,2]
[395121024,1764456662869,-1091.02,0.00035616,2]
[395121025,1764456662879,-1091.02,0.00035616,2]
[395121026,1764456662888,-1091.02,0.00035616,2]
[395121027,1764456662897,-1091.02,0.00035616,2]
[395121028,1764456662907,-1091.02,0.00035616,2]
[395121029,1764456662916,-1091.02,0.00035616,2]
[395121030,1764456662926,-1091.02,0.00035616,2]
[395121031,1764456662935,-1091.02,0.00035616,2]
[395121032,1764456662943,-1091.02,0.00035616,2]
[395121033,1764456662952,-1091.02,0.00035616,2]
[395121034,1764456662961,-1091.02,0.00035616,2]
[395121035,1764456662971,-1091.02,0.00035616,2]
[395121036,1764456662980,-1091.14,0.00035616,2]
[395121037,1764456662990,-500.0,0.00035616,2]
[395121038,1764456662999,-500.0,0.00035616,2]
[395121039,1764456663008,-576.44644568,0.00035616,2]
[395121040,1764456663018,-500.0,0.00035616,45]
[395121041,1764456663028,-500.0,0.00035616,45]
[395121042,1764456663038,-502.92711482,0.00035616,45]
[395121043,1764456663047,-500.0,0.00035616,2]
[395121044,1764456663057,-500.0,0.00035616,2]
[395121045,1764456663066,-500.0,0.00035616,2]
[395121046,1764456663076,-500.0,0.00035616,2]
[395121047,1764456663086,-500.0,0.00035616,2]
[395121048,1764456663096,-500.0,0.00035616,2]
[395121049,1764456663106,-500.0,0.00035616,2]
[395121050,1764456663116,-500.0,0.00035616,2]
[395121051,1764456663125,-500.0,0.00035616,2]
[395121052,1764456663134,-390.74861921,0.00035616,2]
[395121053,1764456663144,-500.0,0.00035616,2]
[395121054,1764456663153,-500.0,0.00035616,2]
[395121055,1764456663162,-500.0,0.00035616,2]
[395121056,1764456663171,-500.0,0.00035616,2]
[395121057,1764456663180,-500.0,0.00035616,2]
[395121058,1764456663190,-500.0,0.00035616,2]
[395121059,1764456663200,-500.0,0.00035616,2]
[395121060,1764456663210,-500.0,0.00035616,2]
[395121061,1764456663221,-500.0,0.00035616,2]
[395121062,1764456663231,-501.28833551,0.00035616,2]
[395121063,1764456663240,-880.67,0.00035616,2]
[395121064,1764456663249,-880.67,0.00035616,2]
[395121065,1764456663259,-880.67,0.00035616,2]
[395121066,1764456663268,-880.67,0.00035616,2]
[395121067,1764456663277,-880.67,0.00035616,2]
[395121068,1764456663286,-880.67,0.00035616,2]
[395121069,1764456663295,-880.67,0.00035616,2]
[395121070,1764456663304,-880.67,0.00035616,2]
[395121071,1764456663313,-880.67,0.00035616,2]
[395121072,1764456663322,-880.67,0.00035616,2]
[395121073,1764456663331,-880.67,0.00035616,2]
[395121074,1764456663341,-880.67,0.00035616,2]
[395121075,1764456663351,-880.67,0.00035616,2]
[395121076,1764456663360,-880.67,0.00035616,2]
[395121077,1764456663369,-880.67,0.00035616,2]
[395121078,1764456663379,-880.67,0.00035616,2]
[395121079,1764456663388,-880.67,0.00035616,2]
[395121080,1764456663397,-880.67,0.00035616,2]
[395121081,1764456663408,-880.67,0.00035616,2]
[395121082,1764456663418,-880.67,0.00035616,2]
[395121083,1764456663427,-880.67,0.00035616,2]
[395121084,1764456663436,-880.67,0.00035616,2]
[395121085,1764456663446,-880.67,0.00035616,2]
[395121086,1764456663455,-880.87093175,0.00035616,2]
[395121087,1764456663464,-500.0,0.00035616,10]
[395121088,1764456663474,-500.0,0.00035616,10]
[395121089,1764456663483,-510.04739399,0.00035616,10]
[395121090,1764456663493,-500.0,0.00035616,2]
[395121091,1764456663503,-500.0,0.00035616,2]
[395121092,1764456663513,-500.0,0.00035616,2]
[395121093,1764456663522,-500.0,0.00035616,2]
[395121094,1764456663532,-500.0,0.00035616,2]
[395121095,1764456663541,-500.0,0.00035616,2]
[395121096,1764456663550,-500.0,0.00035616,2]
[395121097,1764456663560,-500.0,0.00035616,2]
[395121098,1764456663569,-500.0,0.00035616,2]
[395121099,1764456663579,-502.65949722,0.00035616,2]
[395121100,1764456663588,-500.0,0.00035616,2]
[395121101,1764456663598,-500.0,0.00035616,2]
[395121102,1764456663607,-500.0,0.00035616,2]
[395121103,1764456663616,-500.0,0.00035616,2]
[395121104,1764456663625,-500.0,0.00035616,2]
[395121105,1764456663636,-500.0,0.00035616,2]
[395121106,1764456663646,-500.0,0.00035616,2]
[395121107,1764456663656,-500.0,0.00035616,2]
[395121108,1764456663665,-500.0,0.00035616,2]
[395121109,1764456663675,-501.61931597,0.00035616,2]
[395121110,1764456663684,-500.0,0.00035616,2]
[395121111,1764456663693,-500.0,0.00035616,2]
[395121112,1764456663702,-500.0,0.00035616,2]
[395121113,1764456663711,-500.0,0.00035616,2]
[395121114,1764456663721,-500.0,0.00035616,2]
[395121115,1764456663730,-500.0,0.00035616,2]
[395121116,1764456663739,-208.76744812,0.00035616,2]
[395121117,1764456663749,-4494.56,0.00035616,2]
[395121118,1764456663758,-4494.56,0.00035616,2]
[395121119,1764456663767,-4494.56,0.00035616,2]
[395121120,1764456663776,-4494.56,0.00035616,2]
[395121121,1764456663787,-4494.56,0.00035616,2]
[395121122,1764456663799,-4494.56,0.00035616,2]
[395121123,1764456663808,-4494.56,0.00035616,2]
[395121124,1764456663817,-4494.56,0.00035616,2]
[395121125,1764456663827,-4494.56,0.00035616,2]
[395121126,1764456663836,-4494.56,0.00035616,2]
[395121127,1764456663846,-4494.56,0.00035616,2]
[395121128,1764456663856,-4494.56,0.00035616,2]
[395121129,1764456663865,-4494.56,0.00035616,2]
[395121130,1764456663874,-4494.56,0.00035616,2]
[395121131,1764456663883,-4494.56,0.00035616,2]
[395121132,1764456663892,-4494.56,0.00035616,2]
[395121133,1764456663901,-4494.56,0.00035616,2]
[395121134,1764456663910,-4494.56,0.00035616,2]
[395121135,1764456663920,-4494.56,0.00035616,2]
[395121136,1764456663929,-4494.56,0.00035616,2]
[395121137,1764456663938,-4494.56,0.00035616,2]
[395121138,1764456663948,-4494.56,0.00035616,2]
[395121139,1764456663957,-4494.56,0.00035616,2]
[395121140,1764456663967,-4494.69350937,0.00035616,2]
[395121141,1764456663976,-300.0,0.00035616,2]
[395121142,1764456663985,-162.41091373,0.00035616,60]
[395121143,1764456663994,-500.0,0.00035616,8]
[395121144,1764456664003,-634.41108126,0.00035616,8]
[395121145,1764456664012,-300.0,0.00035616,2]
[395121146,1764456664021,-300.0,0.00035616,2]
[395121147,1764456664030,-300.0,0.00035616,2]
[395121148,1764456664039,-300.0,0.00035616,2]
[395121149,1764456664048,-300.0,0.00035616,2]
[395121150,1764456664057,-300.0,0.00035616,2]
[395121151,1764456664066,-300.0,0.00035616,2]
[395121152,1764456664075,-300.0,0.00035616,2]
[395121153,1764456664084,-300.0,0.00035616,2]
[395121154,1764456664094,-300.0,0.00035616,2]
[395121155,1764456664103,-300.0,0.00035616,2]
[395121156,1764456664113,-300.0,0.00035616,2]
[395121157,1764456664123,-300.0,0.00035616,2]
[395121158,1764456664132,-300.0,0.00035616,2]
[395121159,1764456664142,-214.75725702,0.00035616,2]
[395121160,1764456664151,-194.5,0.00035616,2]
[395121161,1764456664160,-200.89994044,0.00035616,2]
[395121162,1764456664170,-332.86,0.00035628,2]
[395121163,1764456664181,-150.0,0.00035654,2]
[395121164,1764456664190,-150.0,0.00035654,2]
[395121165,1764456664200,-150.0,0.00035654,2]
[395121166,1764456664210,-150.0,0.00035654,2]
[395121167,1764456664219,-204.01,0.000357,30]
[395121168,1764456664228,-1014.49751,0.00035888,30]
[395121169,1764456664237,-654.27,0.0003589,10]
[395121170,1764456664247,-1000.0,0.0003589,2]
[395121171,1764456664258,-199.0,0.0003589,7]
[395121172,1764456664267,-50000.0,0.00036,26]
[395121173,1764456664277,-50000.0,0.00036,36]
[395121174,1764456664286,-800.0,0.00036,14]
[395121175,1764456664296,-800.0,0.00036,14]
[395121176,1764456664305,-800.0,0.00036,14]
[395121177,1764456664315,-800.0,0.00036,14]
[395121178,1764456664325,-800.0,0.00036,14]
[395121179,1764456664335,-800.0,0.00036,14]
[395121180,1764456664345,-324.59677938,0.00036,120]
[395121181,1764456664355,-1091.19,0.00036,30]
[395121182,1764456664365,-222.75861129,0.00036,2]
[395121183,1764456664374,-937.30610001,0.00036,2]
[395121184,1764456664386,-151.9770919,0.00036,2]
[395121185,1764456664397,-1000.0,0.00036,120]
[395121186,1764456664406,-1653.62997945,0.00036,120]
[395121187,1764456664416,-265.88,0.00036,120]
[395121188,1764456664426,-200.0,0.00036,120]
[395121189,1764456664436,-200.0,0.00036,120]
[395121190,1764456664446,-200.0,0.00036,120]
[395121191,1764456664456,-200.0,0.00036,120]
[395121192,1764456664467,-200.0,0.00036,60]
[395121193,1764456664477,-200.0,0.00036,60]
[395121194,1764456664486,-200.0,0.00036,60]
[395121195,1764456664496,-200.0,0.00036,50]
[395121196,1764456664506,-200.0,0.00036,50]
[395121197,1764456664515,-10755.81099158,0.00036,2]
[395121198,1764456664525,-1500.0,0.00036,30]
[395121199,1764456664535,-1500.0,0.00036,30]
[395121200,1764456664545,-693.44876774,0.00036,120]
[395121201,1764456664555,-152.0,0.00036003,8]
[395121202,1764456664564,-1603.0,0.00036013,2]
[395121203,1764456664574,-2700.0,0.00036024,14]
[395121204,1764456664584,-5000.0,0.00036059,2]
[395121205,1764456664593,-25000.0,0.00036075,2]
[395121206,1764456664603,-166.556837,0.00036075,31]
[395121207,1764456664613,-151.0,0.00036075,31]
[395121208,1764456664623,-151.0,0.00036075,31]
[395121209,1764456664633,-151.0,0.00036075,31]
[395121210,1764456664643,-187.167848,0.00036075,31]
[395121211,1764456664652,-5000.0,0.00036077,2]
[395121212,1764456664663,-1014.49751,0.00036088,30]
[395121213,1764456664672,-630.5139553,0.000361,2]
[395121214,1764456664682,-5000.0,0.00036106,2]
[395121215,1764456664692,-5000.0,0.00036109,2]
[395121216,1764456664701,-500.0,0.00036129,120]
[395121217,1764456664712,-2000.0,0.00036135,120]
[395121218,1764456664721,-654.27,0.00036164,10]
[395121219,1764456664731,-1000.0,0.00036164,2]
[395121220,1764456664740,-1741.42,0.00036164,120]
[395121221,1764456664750,-4661.67,0.00036181,2]
[395121222,1764456664759,-5000.0,0.00036194,2]
[395121223,1764456664770,-640.0,0.00036225,20]
[395121224,1764456664780,-5000.0,0.00036227,2]
[395121225,1764456664789,-5000.0,0.00036229,2]
[395121226,1764456664799,-5000.0,0.00036231,2]
[395121227,1764456664808,-5000.0,0.0003624,2]
[395121228,1764456664818,-5000.0,0.00036252,2]
[395121229,1764456664827,-4441.53,0.00036276,2]
[395121230,1764456664837,-1665.01,0.00036279,2]
[395121231,1764456664846,-1014.49751,0.00036288,30]
[395121232,1764456664856,-630.85,0.00036295,2]
[395121233,1764456664867,-5000.0,0.00036296,2]
[395121234,1764456664876,-2700.0,0.00036298,14]
[395121235,1764456664886,-25000.0,0.00036311,2]
[395121236,1764456664896,-5000.0,0.00036315,2]
[395121237,1764456664906,-5000.0,0.00036334,2]
[395121238,1764456664916,-216.23573793,0.00036359,120]
[395121239,1764456664927,-5000.0,0.00036375,2]
[395121240,1764456664938,-2543.5,0.0003639,2]
[395121241,1764456664947,-5000.0,0.00036409,2]
[395121242,1764456664957,-606.19,0.00036415,2]
[395121243,1764456664967,-5000.0,0.0003642,2]
[395121244,1764456664977,-5000.0,0.00036421,2]
[395121245,1764456664986,-5000.0,0.00036434,2]
[395121246,1764456664995,-654.27,0.00036438,10]
[395121247,1764456665005,-1000.0,0.00036438,2]
[395121248,1764456665015,-25000.0,0.00036438,2]
[395121249,1764456665025,-199.0,0.00036438,8]
[395121250,1764456665034,-13301.39,0.00036446,2]
[395121251,1764456665045,-3225.35,0.00036467,2]
[395121252,1764456665054,-150.0,0.00036476,2]
[395121253,1764456665064,-151.77,0.00036476,2]
[395121254,1764456665073,-1014.49751,0.00036488,30]
[395121255,1764456665083,-25000.0,0.00036498,2]
[395121256,1764456665092,-2500.0,0.00036527,2]
[395121257,1764456665102,-25000.0,0.00036531,2]
[395121258,1764456665112,-5000.0,0.0003657,2]
[395121259,1764456665121,-5000.0,0.00036574,2]
[395121260,1764456665131,-1485.33,0.00036576,2]
[395121261,1764456665141,-640.0,0.00036598,20]
[395121262,1764456665151,-5000.0,0.00036607,2]
[395121263,1764456665163,-191.37909282,0.00036612,2]
[395121264,1764456665173,-5000.0,0.00036658,2]
[395121265,1764456665183,-267.59,0.0003667,120]
[395121266,1764456665194,-5000.0,0.00036678,2]
[395121267,1764456665204,-1014.49751,0.00036688,30]
[395121268,1764456665214,-25000.0,0.00036702,2]
[395121269,1764456665223,-654.27,0.00036712,10]
[395121270,1764456665233,-1000.0,0.00036712,2]
[395121271,1764456665244,-1091.19,0.0003672,30]
[395121272,1764456665255,-5000.0,0.00036732,2]
[395121273,1764456665265,-152.0,0.00036735,9]
[395121274,1764456665275,-4608.29,0.00036739,2]
[395121275,1764456665284,-5000.0,0.00036767,2]
[395121276,1764456665294,-1594.78421309,0.000368,2]
[395121277,1764456665304,-1935.67490031,0.000368,2]
[395121278,1764456665313,-1604.64064711,0.000368,120]
[395121279,1764456665324,-204.01,0.000368,30]
[395121280,1764456665333,-385.57,0.000368,14]
[395121281,1764456665343,-25000.0,0.00036828,2]
[395121282,1764456665352,-5000.0,0.00036829,2]
[395121283,1764456665362,-2543.5,0.00036831,2]
[395121284,1764456665372,-948.14,0.0003684,2]
[395121285,1764456665382,-1097.0,0.00036841,5]
[395121286,1764456665396,-5000.0,0.00036884,2]
[395121287,1764456665405,-127074.67740941,0.00036888,60]
[395121288,1764456666854,-7837.13233405,0.0001588,2]
[395121289,1764456666863,-252.0,0.00021013,2]
[395121290,1764456666872,-551.92,0.00023313,2]
[395121291,1764456666881,-252.0,0.00024013,2]
[395121292,1764456666890,-1213.49,0.00024127,2]
[395121293,1764456666899,-602.47474596,0.00025242,2]
[395121294,1764456666909,-602.47474596,0.00025246,2]
[395121295,1764456666918,-602.47474596,0.0002525,2]
[395121296,1764456666927,-169.97,0.00026613,2]
[395121297,1764456666936,-177.85,0.00028257,2]
[395121298,1764456666945,-418.03,0.00034016,2]
[395121299,1764456666955,-142137.61995261,0.00036888,60]
[395121300,1764456666966,-3381.6583,0.00036888,7]
[395121301,1764456666976,-1014.49751,0.00036888,30]
[395121302,1764456666986,-202.0,0.0003689,30]
[395121303,1764456666996,-794.17025833,0.000369,2]
[395121304,1764456667007,-5000.0,0.00036901,2]
[395121305,1764456667017,-5000.0,0.00036902,2]
[395121306,1764456667027,-13992.8443443,0.0003691,2]
[395121307,1764456667037,-5000.0,0.00036914,2]
[395121308,1764456667046,-5000.0,0.00036935,2]
[395121309,1764456667055,-5000.0,0.00036949,2]
[395121310,1764456667064,-5000.0,0.00036953,2]
[395121311,1764456667073,-658.84,0.0003696,2]
[395121312,1764456667084,-640.0,0.00036972,20]
[395121313,1764456667093,-5000.0,0.00036977,2]
[395121314,1764456667102,-654.27,0.00036986,10]
[395121315,1764456667112,-257.37822904,0.00036986,2]
[395121316,1764456667121,-199.0,0.00036986,9]
[395121317,1764456667131,-1741.42,0.00036986,120]
[395121318,1764456667140,-150.0,0.00036986,100]
[395121319,1764456667150,-50000.0,0.00037,27]
[395121320,1764456667159,-50000.0,0.00037,37]
[395121321,1764456667169,-164.01558376,0.00037,2]
[395121322,1764456667178,-16455.09077709,0.00037,2]
[395121323,1764456667187,-1500.0,0.00037,30]
[395121324,1764456667196,-1500.0,0.00037,30]
[395121325,1764456667206,-42218.29878596,0.00037,7]
[395121326,1764456667215,-385.57,0.00037,14]
[395121327,1764456667223,-3388.89,0.00037,2]
[395121328,1764456667232,-1015.86869026,0.00037,7]
[395121329,1764456667242,-153.0,0.00037009,2]
[395121330,1764456667253,-153.0,0.00037011,2]
[395121331,1764456667264,-153.0,0.00037011,2]
[395121332,1764456667283,-153.0,0.0003702,2]
[395121333,1764456667297,-153.0,0.0003702,2]
[395121334,1764456667313,-2000.0,0.0003704,120]
[395121335,1764456667330,-1014.49751,0.00037088,30]
[395121336,1764456667347,-592.78725744,0.00037098,30]
[395121337,1764456667363,-700.0,0.0003712,14]
[395121338,1764456667379,-500.0,0.00037161,120]
[395121339,1764456667406,-945.1722908,0.000372,120]
[395121340,1764456667424,-945.17229078,0.000372,120]
[395121341,1764456667439,-945.17229078,0.000372,120]
[395121342,1764456667457,-945.17229078,0.000372,120]
[395121343,1764456667471,-945.17229078,0.000372,120]
[395121344,1764456667487,-654.27,0.0003726,10]
[395121345,1764456667503,-212.99009857,0.00037272,120]
[395121346,1764456667518,-1014.49751,0.00037288,30]
[395121347,1764456667530,-1000.0,0.000373,120]
[395121348,1764456667547,-204.01,0.000373,30]
[395121349,1764456667558,-640.0,0.00037345,20]
[395121350,1764456667574,-1091.19,0.0003744,30]
[395121351,1764456667588,-152.0,0.00037468,10]
[395121352,1764456667600,-1014.49751,0.00037488,30]
[395121353,1764456667623,-654.27,0.00037534,10]
[395121354,1764456667637,-199.0,0.00037534,10]
[395121355,1764456667651,-4289.78802536,0.0003759,2]
[395121356,1764456667665,-2700.0,0.00037668,14]
[395121357,1764456667678,-1014.49751,0.00037688,30]
[395121358,1764456667693,-640.0,0.00037718,20]
[395121359,1764456667706,-216.23573793,0.00037728,120]
[395121360,1764456667720,-592.0,0.00037778,5]
[395121361,1764456667738,-592.0,0.00037778,20]
[395121362,1764456667752,-150.0,0.00037778,30]
[395121363,1764456667765,-654.27,0.00037808,10]
[395121364,1764456667780,-1741.42,0.00037808,120]
[395121365,1764456667795,-183.43382903,0.0003787,120]
[395121366,1764456667808,-301.12915753,0.00037878,30]
[395121367,1764456667822,-301.12915753,0.00037878,30]
[395121368,1764456667836,-300.0,0.00037878,30]
[395121369,1764456667849,-300.0,0.00037878,30]
[395121370,1764456667862,-365.3682991,0.00037878,30]
[395121371,1764456667875,-305.15817633,0.00037878,30]
[395121372,1764456667889,-301.28020266,0.00037878,30]
[395121373,1764456667903,-644.49445734,0.00037878,30]
[395121374,1764456667916,-300.0,0.00037878,30]
[395121375,1764456667930,-300.0,0.00037878,30]
[395121376,1764456667944,-300.87443563,0.00037878,30]
[395121377,1764456667957,-300.0,0.00037878,30]
[395121378,1764456667970,-300.0,0.00037878,30]
[395121379,1764456667983,-506.94193861,0.00037878,30]
[395121380,1764456667997,-301.12915753,0.00037878,30]
[395121381,1764456668011,-300.0,0.00037878,30]
[395121382,1764456668026,-300.0,0.00037878,30]
[395121383,1764456668040,-365.3682991,0.00037878,30]
[395121384,1764456668054,-301.28020266,0.00037878,30]
[395121385,1764456668068,-644.49445734,0.00037878,30]
[395121386,1764456668083,-300.0,0.00037878,30]
[395121387,1764456668097,-303.2872998,0.00037878,30]
[395121388,1764456668111,-300.87443563,0.00037878,30]
[395121389,1764456668124,-300.0,0.00037878,30]
[395121390,1764456668138,-477.80623657,0.00037878,30]
[395121391,1764456668152,-300.0,0.00037878,30]
[395121392,1764456668167,-301.12915753,0.00037878,30]
[395121393,1764456668181,-300.0,0.00037878,30]
[395121394,1764456668195,-300.0,0.00037878,30]
[395121395,1764456668210,-365.3682991,0.00037878,30]
[395121396,1764456668224,-301.28020266,0.00037878,30]
[395121397,1764456668238,-644.49445734,0.00037878,30]
[395121398,1764456668252,-300.0,0.00037878,30]
[395121399,1764456668267,-300.87443563,0.00037878,30]
[395121400,1764456668281,-500.66878121,0.00037878,30]
[395121401,1764456668295,-300.0,0.00037878,30]
[395121402,1764456668309,-301.12915753,0.00037878,30]
[395121403,1764456668323,-300.0,0.00037878,30]
[395121404,1764456668337,-300.0,0.00037878,30]
[395121405,1764456668350,-365.3682991,0.00037878,30]
[395121406,1764456668363,-301.28020266,0.00037878,30]
[395121407,1764456668377,-939.23539642,0.00037878,30]
[395121408,1764456668394,-541.52726943,0.00037878,30]
[395121409,1764456668409,-300.87443563,0.00037878,30]
[395121410,1764456668422,-300.0,0.00037878,30]
[395121411,1764456668437,-301.12915753,0.00037878,30]
[395121412,1764456668451,-300.0,0.00037878,30]
[395121413,1764456668465,-300.0,0.00037878,30]
[395121414,1764456668479,-365.3682991,0.00037878,30]
[395121415,1764456668492,-300.0,0.00037878,30]
[395121416,1764456668505,-301.28020266,0.00037878,30]
[395121417,1764456668520,-300.87443563,0.00037878,30]
[395121418,1764456668533,-300.0,0.00037878,30]
[395121419,1764456668547,-506.94193861,0.00037878,30]
[395121420,1764456668560,-301.12915753,0.00037878,30]
[395121421,1764456668574,-300.0,0.00037878,30]
[395121422,1764456668588,-300.0,0.00037878,30]
[395121423,1764456668601,-365.3682991,0.00037878,30]
[395121424,1764456668615,-300.0,0.00037878,30]
[395121425,1764456668629,-301.28020266,0.00037878,30]
[395121426,1764456668644,-300.0,0.00037878,30]
[395121427,1764456668658,-644.49445734,0.00037878,30]
[395121428,1764456668672,-300.0,0.00037878,30]
[395121429,1764456668686,-300.00000001,0.00037878,30]
[395121430,1764456668700,-300.87443563,0.00037878,30]
[395121431,1764456668714,-300.0,0.00037878,30]
[395121432,1764456668729,-300.0,0.00037878,30]
[395121433,1764456668743,-506.94193861,0.00037878,30]
[395121434,1764456668757,-301.12915753,0.00037878,30]
[395121435,1764456668772,-300.0,0.00037878,30]
[395121436,1764456668786,-300.0,0.00037878,30]
[395121437,1764456668799,-365.3682991,0.00037878,30]
[395121438,1764456668813,-300.0,0.00037878,30]
[395121439,1764456668827,-301.28020266,0.00037878,30]
[395121440,1764456668840,-300.0,0.00037878,30]
[395121441,1764456668854,-644.49445734,0.00037878,30]
[395121442,1764456668869,-300.0,0.00037878,30]
[395121443,1764456668883,-300.0,0.00037878,30]
[395121444,1764456668897,-300.87443563,0.00037878,30]
[395121445,1764456668912,-300.0,0.00037878,30]
[395121446,1764456668925,-300.0,0.00037878,30]
[395121447,1764456668940,-506.94193861,0.00037878,30]
[395121448,1764456668953,-200.05346327,0.0003788,2]
[395121449,1764456668966,-1014.49751,0.00037888,30]
[395121450,1764456668980,-2700.0,0.00037942,14]
[395121451,1764456668993,-2000.0,0.00037944,120]
[395121452,1764456669006,-50000.0,0.00038,38]
[395121453,1764456669020,-50000.0,0.00038,28]
[395121454,1764456669035,-2000.0,0.00038,120]
[395121455,1764456669048,-500.0,0.00038,21]
[395121456,1764456669061,-500.0,0.00038,28]
[395121457,1764456669073,-1015.0,0.00038,25]
[395121458,1764456669087,-467.13310993,0.00038,30]
[395121459,1764456669101,-783.70732329,0.00038,120]
[395121460,1764456669114,-159.17031787,0.00038,120]
[395121461,1764456669127,-1000.0,0.00038,120]
[395121462,1764456669142,-500.0,0.00038,61]
[395121463,1764456669156,-400.0,0.00038,60]
[395121464,1764456669169,-1000.0,0.00038,120]
[395121465,1764456669182,-1500.0,0.00038,30]
[395121466,1764456669196,-1500.0,0.00038,30]
[395121467,1764456669208,-616.19377,0.00038,2]
[395121468,1764456669221,-217.243595,0.00038,2]
[395121469,1764456669235,-1014.0,0.00038,7]
[395121470,1764456669248,-654.27,0.00038082,10]
[395121471,1764456669261,-199.0,0.00038082,11]
[395121472,1764456669274,-1014.49751,0.00038088,30]
[395121473,1764456669287,-640.0,0.00038092,20]
[395121474,1764456669300,-484.22362484,0.000381,33]
[395121475,1764456669313,-441.41,0.0003812,2]
[395121476,1764456669327,-1091.19,0.0003816,120]
[395121477,1764456669342,-212.99009857,0.00038185,120]
[395121478,1764456669354,-500.0,0.00038194,120]
[395121479,1764456669367,-152.0,0.00038201,11]
[395121480,1764456669380,-1014.49751,0.00038288,30]
[395121481,1764456669397,-504.68445035,0.000383,30]
[395121482,1764456669409,-654.27,0.00038356,10]
[395121483,1764456669422,-1256.71,0.00038356,120]
[395121484,1764456669434,-1256.71,0.00038356,120]
[395121485,1764456669446,-1256.71,0.00038356,120]
[395121486,1764456669459,-1256.71,0.00038356,120]
[395121487,1764456669471,-1256.71,0.00038356,120]
[395121488,1764456669483,-1256.71,0.00038356,120]
[395121489,1764456669498,-1256.71,0.00038356,120]
[395121490,1764456669512,-1256.71,0.00038356,120]
[395121491,1764456669525,-1256.71,0.00038356,120]
[395121492,1764456669540,-1256.71,0.00038356,120]
[395121493,1764456669553,-1256.71,0.00038356,120]
[395121494,1764456669565,-1256.71,0.00038356,120]
[395121495,1764456669578,-1256.71,0.00038356,120]
[395121496,1764456669591,-1256.71,0.00038356,120]
[395121497,1764456669604,-1256.71,0.00038356,120]
[395121498,1764456669616,-1256.71,0.00038356,120]
[395121499,1764456669629,-1256.71,0.00038356,120]
[395121500,1764456669641,-1256.71,0.00038356,120]
[395121501,1764456669654,-1256.71,0.00038356,120]
[395121502,1764456669666,-1256.71,0.00038356,120]
[395121503,1764456669679,-1256.71,0.00038356,120]
[395121504,1764456669691,-1256.71,0.00038356,120]
[395121505,1764456669704,-1256.71,0.00038356,120]
[395121506,1764456669716,-1256.81444704,0.00038356,120]
[395121507,1764456669729,-271.0710474,0.00038356,120]
[395121508,1764456669741,-459.63200301,0.00038356,2]
[395121509,1764456669753,-977.749585,0.00038356,120]